Cogmind - Beta 16.1 @@@ ROGUE MODE // 2026.06.18 @ 15:06:24 Player: Infomantis Result: Establishing 0b11! Performance ------------- Evolutions (9) 4500 Regions Visited (21) 4200 Robots Destroyed (75) 375 Value Destroyed (3367) 3367 Prototype IDs (389) 7780 Alien Tech Used (2) 400 Bonus (32195) 32195 TOTAL SCORE: 52817 Bonus ------- High Alert Combat Kills 10 Follower Combat Kills 591 Aligned with FarCom 300 Met Zhirov 300 Met Warlord at Base 500 MAIN.C Attacked Warlord 500 Warlord Defense Kills 722 Met Warlord at Research 2000 Invited to Help at Command 2000 Destroyed MAIN.C Guards 500 Met MAIN.C 5000 Destroyed MAIN.C Shell 5000 Destroyed MAIN.C 10000 Met Warlord at Command 2000 Win 3000 Friendly Fire -228 Cogmind --------- Core Integrity 973/1600 Matter 290/300 Energy 297/300 System Corruption 3% Temperature Cool (6) Movement Flying (21) Location 0b11 Command Parts ------- > --- POWER (2) -------- Micro Antimatter Reactor Micro Antimatter Reactor > --- PROPULSION (9) --- Xenon Bombardment Thruster Cooled Nuclear Pulse Thruster Cooled Field Propulsion Drive Cooled Impulse Thruster Cooled Impulse Thruster Cooled Impulse Thruster > --- UTILITY (12) ----- Experimental Heat Sink Large Storage Unit Small Battery Advanced Weight Redist. System Experimental Optical Array Experimental Core Analyzer Experimental Core Analyzer Layered Medium Armor Plating > --- WEAPON (2) ------- Impact Mace > --- INVENTORY (15) --- Micro Antimatter Reactor Compact HERF Cannon Improved Matter Neutralizer Hypervelocity Railgun Hypervelocity Railgun Gamma Bomb Array Long-range Missile Launcher Peak State ------------ > --- POWER ------------ Micro Antimatter Reactor Micro Antimatter Reactor > --- PROPULSION ------- Cooled Field Propulsion Drive Q-thruster Q-thruster Q-thruster Improved Diametric Drive Cooled Impulse Thruster Cooled Impulse Thruster Cooled Impulse Thruster Cooled Impulse Thruster > --- UTILITY ---------- Experimental Heat Sink Experimental Cooling System Large Storage Unit Small Battery Experimental Optical Array Experimental Melee Analysis Suite Experimental Core Analyzer Experimental Core Analyzer Experimental Reaction Control System Heavy Armor Plating Improved System Shield > --- WEAPON ----------- Hypervelocity Railgun Hypervelocity Railgun > --- INVENTORY -------- Micro Antimatter Reactor Cooled Nuclear Pulse Thruster Impulse Thruster Array Advanced Weight Redist. System Nanoactuators Actuator Array Layered Medium Armor Plating Gamma Rifle Improved Matter Neutralizer Gamma Bomb Array Long-range Missile Launcher Impact Mace Vortex Lance Vortex Lance [Rating: 193] Favorites ----------- Power Micro Antimatter Reactor Engine Backup Power I Power Core Micro Nuclear Core Reactor Micro Antimatter Reactor Propulsion Cooled VTOL Module Hover Unit Cooled Gravmag System Flight Unit Cooled VTOL Module Utility Advanced Weight Redist. System Device Advanced Weight Redist. System Storage Medium Storage Unit Processor Experimental Optical Array Hackware Hacking Suite Protection Layered Medium Armor Plating Weapon Impact Mace Energy Gun Vortex Rifle Energy Cannon Latent Energy Streamer Ballistic Gun Hypervelocity Gauss Rifle Launcher Long-range Missile Launcher Special Weapon Remote Datajack Impact Weapon Impact Mace Slashing Weapon Particle Cleaver Piercing Weapon Vortex Lance Special Melee Weapon Advanced Datajack Build | -11 -10 -10 -10 -9 -8 -7 -6 -5 -5 -5 -5 -4 -4 -4 -4 -4 -3 -3 -2 -1 -1 ------- Run | Yrd Mat Min Exi Min Mat Fac Fac Fac Upp Upp War Pro Fac Upp Upp Zhi Pro Res Res Acc Com Slots Evolved 18 | . . . . . 4 2 2 2 . . . . 2 . . . . 2 2 2 . Power 1 | . . . . . . . 1 . . . . . . . . . . . . . . Propulsion 7 | . . . . . 3 1 . 1 . . . . . . . . . 1 . 1 . Utility 10 | . . . . . 1 1 1 1 . . . . 2 . . . . 1 2 1 . Weapon . | . . . . . . . . . . . . . . . . . . . . . . Parts Attached 127 | . 3 4 1 . 10 9 12 10 2 . 12 . 5 . 1 4 . 14 25 4 11 Power 13 | . . . 1 . 1 2 2 1 . . 2 . . . . . . 4 . . . Engine 2 | . . . 1 . . . 1 . . . . . . . . . . . . . . Core 6 | . . . . . 1 2 1 1 . . . . . . . . . 1 . . . Reactor 5 | . . . . . . . . . . . 2 . . . . . . 3 . . . Propulsion 30 | . 2 1 . . 4 2 2 2 . . 2 . 2 . . 1 . 3 5 2 2 Treads . | . . . . . . . . . . . . . . . . . . . . . . Leg . | . . . . . . . . . . . . . . . . . . . . . . Wheel . | . . . . . . . . . . . . . . . . . . . . . . Hover 1 | . . . . . . . . . . . . . . . . 1 . . . . . Flight 29 | . 2 1 . . 4 2 2 2 . . 2 . 2 . . . . 3 5 2 2 Utility 58 | . . 2 . . 3 4 2 4 1 . 5 . 3 . 1 2 . 7 15 2 7 Device 20 | . . . . . 1 2 1 1 1 . 1 . 1 . . 2 . 2 5 1 2 Storage 4 | . . . . . 1 . . . . . . . . . . . . . 2 . 1 Processor 11 | . . 1 . . . . . 1 . . 2 . . . 1 . . 2 3 . 1 Hackware 9 | . . . . . . 1 . 1 . . . . 1 . . . . 3 2 1 . Protection 14 | . . 1 . . 1 1 1 1 . . 2 . 1 . . . . . 3 . 3 Artifact . | . . . . . . . . . . . . . . . . . . . . . . Weapon 26 | . 1 1 . . 2 1 6 3 1 . 3 . . . . 1 . . 5 . 2 Energy Gun 1 | . . . . . . . . . . . 1 . . . . . . . . . . Energy Cannon 3 | . . . . . . . . . 1 . 1 . . . . . . . 1 . . Ballistic Gun 9 | . 1 1 . . 1 . 1 2 . . 1 . . . . . . . 2 . . Ballistic Cannon . | . . . . . . . . . . . . . . . . . . . . . . Launcher 3 | . . . . . . . 1 1 . . . . . . . . . . . . 1 Special Weapon 2 | . . . . . . 1 1 . . . . . . . . . . . . . . Impact Weapon 4 | . . . . . 1 . 3 . . . . . . . . . . . . . . Slashing Weapon 1 | . . . . . . . . . . . . . . . . . . . 1 . . Piercing Weapon 2 | . . . . . . . . . . . . . . . . 1 . . . . 1 Special Melee Weapon 1 | . . . . . . . . . . . . . . . . . . . 1 . . Unidentified Prototypes 30 | . . . . . 3 1 2 1 . . 8 . . . . 4 . 1 9 . 1 Parts Lost 21 | . . 1 . . . 1 . . . . . . . 1 . . . 2 2 . 14 Power . | . . . . . . . . . . . . . . . . . . . . . . Propulsion 8 | . . 1 . . . 1 . . . . . . . . . . . . . . 6 Utility 10 | . . . . . . . . . . . . . . 1 . . . 2 1 . 6 Weapon 3 | . . . . . . . . . . . . . . . . . . . 1 . 2 Highest Loss Streak 10 | . . 1 . . . 1 . . . . . . . 1 . . . 1 1 . 10 To Critical Strikes . | . . . . . . . . . . . . . . . . . . . . . . Average Backups 9 | 3 4 4 4 5 9 9 9 9 10 10 9 9 8 9 9 9 9 9 13 13 12 Power 1 | . 1 1 . . 2 2 1 . 1 1 1 1 1 1 1 1 1 1 1 1 1 Propulsion . | . . . . . . . . . . . . . . . . . . . 1 . 1 Utility 3 | . . . . 1 . 3 4 4 3 3 2 3 2 3 4 3 3 3 5 6 3 Weapon 4 | 2 3 3 4 4 4 4 4 4 5 6 5 4 4 4 4 4 4 4 5 5 6 Tool/Special . | . . . . . . . . . . . . . . . . . . . . . . Unused Backups 34 | . 1 . 1 . 4 2 3 3 1 . 5 . 2 . . 2 . 2 5 . 3 Power 2 | . . . . . . . . . . . . . . . . . . 2 . . . Propulsion . | . . . . . . . . . . . . . . . . . . . . . . Utility 15 | . 1 . . . 1 1 2 2 1 . 1 . . . . 2 . . 3 . 1 Weapon 17 | . . . 1 . 3 1 1 1 . . 4 . 2 . . . . . 2 . 2 Tool/Special . | . . . . . . . . . . . . . . . . . . . . . . Average Slot Usage (%) 94 | . 14 79 71 71 86 87 97 97 100 100 99 100 99 99 97 100 100 96 97 95 91 Core 4 | . . . . . 8 7 8 7 11 11 7 5 5 5 5 5 5 1 . . . Reactor 3 | . . . . . . . . . . . 3 5 5 5 5 5 5 7 8 8 8 Flight 36 | . 8 28 28 28 42 42 38 39 41 41 40 41 36 36 36 35 36 34 34 36 34 Device 12 | . . . . . 3 7 12 10 17 17 13 14 14 14 10 12 15 11 20 15 13 Storage 4 | . . . . . 8 7 6 5 5 5 5 5 5 5 5 5 5 4 4 4 7 Processor 6 | . . 10 14 14 6 . . . . . 3 11 10 10 13 12 10 9 7 12 12 Hackware 6 | . . . . . . 3 6 10 11 11 7 . 4 5 5 5 5 11 7 8 4 Protection 5 | . . 12 14 14 9 9 6 5 . . 2 1 5 5 5 5 5 3 4 4 3 Ballistic Gun 5 | . 6 26 3 . . . . 5 11 8 6 11 6 6 5 8 10 4 5 4 3 Impact Weapon 3 | . . . . . 7 7 6 4 . 2 3 . 3 3 5 1 . 3 1 3 1 Peak Build Rating 193 | . 3 6 6 6 38 48 65 81 85 81 114 107 120 118 115 124 122 138 174 190 193 Average Rating 100 | . 1 5 5 6 33 43 58 71 81 81 94 106 117 116 113 118 122 129 163 186 179 On Entrance 77 | . . 3 6 6 6 37 44 63 81 81 81 108 107 117 112 115 122 122 137 174 182 Avg Prop Armor Cover (%) 1 | . . . . . . . 1 1 . . 3 . . . . . . . . . . Naked Turns 30 | . 30 . . . . . . . . . . . . . . . . . . . . Heaviest Build 79 | . 2 7 8 8 24 30 34 44 36 36 50 45 46 46 42 46 46 48 72 68 79 Greatest Support 87 | 3 8 8 8 8 24 29 41 48 46 52 51 51 57 57 57 51 51 67 70 87 78 Greatest Overweight (x) 1 | . . . . . . 1 . . . . 1 . . . . . . . 1 . 1 Average Overweight (x) . | . . . . . . . . . . . . . . . . . . . . . . Largest Inventory Capacity 15 | 5 5 5 5 5 10 10 10 10 10 10 10 10 10 10 10 10 10 10 15 15 15 Average Capacity 10 | 5 5 5 5 5 9 10 10 10 10 10 10 10 10 10 10 10 10 10 14 15 15 Most Carried 15 | 5 5 5 5 5 10 10 10 10 10 10 10 10 10 10 10 10 10 10 15 14 15 Average Carried 10 | 3 4 4 4 5 9 9 9 9 9 10 9 10 9 10 10 9 10 9 13 13 13 Final Capacity 15 | 5 5 5 5 5 10 10 10 10 10 10 10 10 10 10 10 10 10 10 15 15 15 Final Carried 15 | 5 5 4 5 5 10 10 10 10 10 10 10 10 10 10 10 10 10 9 15 14 7 Class Distribution -------------------- 49% | Scavenger-Sprinter 20% | Sprinter 13% | Hacker-Sprinter 6% | Mutant 5% | Scavenger-Scout Dominant Class ---------------- Mutant | -10/Materials Mutant | -10/Mines Mutant | -10/Exiles Mutant | -9/Mines Sprinter | -8/Materials Sprinter | -7/Factory Sprinter | -6/Factory Hacker-Sprinter | -5/Factory Scavenger-Sprinter | -5/Upper Caves Scavenger-Sprinter | -5/Upper Caves Scavenger-Sprinter | -5/Warlord Scavenger-Sprinter | -4/Proximity Caves Scavenger-Scout | -4/Factory Scavenger-Sprinter | -4/Upper Caves Scavenger-Sprinter | -4/Upper Caves Scavenger-Sprinter | -4/Zhirov Scavenger-Sprinter | -3/Proximity Caves Hacker-Sprinter | -3/Research Scavenger-Sprinter | -2/Research Scavenger-Sprinter | -1/Access Scavenger-Sprinter | -1/Command Resources | -11 -10 -10 -10 -9 -8 -7 -6 -5 -5 -5 -5 -4 -4 -4 -4 -4 -3 -3 -2 -1 -1 ----------- Run | Yrd Mat Min Exi Min Mat Fac Fac Fac Upp Upp War Pro Fac Upp Upp Zhi Pro Res Res Acc Com Matter Collected 4162 | 196 22 69 . . 130 90 212 475 30 10 610 70 90 235 10 310 . 278 892 40 393 Remotely . | . . . . . . . . . . . . . . . . . . . . . . Salvage Created 4800 | . 137 . . . . 12 731 767 . 64 306 60 90 221 . 330 . 431 453 45 1153 Parts 144 | . 9 . . . . . 19 28 . . 17 6 5 8 . 19 . 14 11 2 6 Haulers Intercepted 9 | . . . . . . . 4 2 . . . . . . . . . 1 2 . . Recyclers Shooed 3 | . 1 . . . . . 1 1 . . . . . . . . . . . . . Parts Field Recycled . | . . . . . . . . . . . . . . . . . . . . . . Retrieved Matter . | . . . . . . . . . . . . . . . . . . . . . . Parts Self-Destructed 36 | . . . . . . . . . 3 . . 14 . 6 . 13 . . . . . Prevented 5 | . . . . . . . . . . . . . . . . 5 . . . . . Parts Restored . | . . . . . . . . . . . . . . . . . . . . . . Kills | -11 -10 -10 -10 -9 -8 -7 -6 -5 -5 -5 -5 -4 -4 -4 -4 -4 -3 -3 -2 -1 -1 ------- Run | Yrd Mat Min Exi Min Mat Fac Fac Fac Upp Upp War Pro Fac Upp Upp Zhi Pro Res Res Acc Com Combat Hostiles Destroyed 44 | . 3 . . . . . 3 11 . 1 6 1 1 6 . . . 5 2 . 5 Melee 5 | . . . . . . . . . . . . . . 2 . . . . 1 . 2 Guns 16 | . 3 . . . . . . 4 . . 2 1 1 3 . . . . 1 . 1 AOE 13 | . . . . . . . 2 3 . . 3 . . . . . . 5 . . . Classes Destroyed 17 | . 2 . . . . 1 4 4 . . 3 . 1 . . . . . 2 . . Worker 5 | . . . . . . . 3 1 . . . . . . . . . 1 . . . Builder 3 | . . . . . . . . 2 . . . . . . . . . . 1 . . Tunneler 1 | . . . . . . 1 . . . . . . . . . . . . . . . Hauler 9 | . . . . . . . 4 2 . . . . . . . . . 1 2 . . Recycler 3 | . 1 . . . . . 1 . . . . . . . . . . 1 . . . Operator 1 | . . . . . . . . . . . . . . . . . . . 1 . . Watcher 9 | . . . . . . . 2 1 . . . . . . . . . 2 3 1 . Swarmer 21 | . 3 . . . . . 2 4 . . 1 . . 5 . . . 5 1 . . Saboteur 1 | . . . . . . . . . . . 1 . . . . . . . . . . Grunt 6 | . . . . . . . 1 2 . 1 1 . . 1 . . . . . . . Brawler 1 | . . . . . . . . 1 . . . . . . . . . . . . . Sentry 1 | . . . . . . . . . . . . . 1 . . . . . . . . Specialist 1 | . . . . . . . . . . . 1 . . . . . . . . . . Hunter 3 | . . . . . . . . 2 . . 1 . . . . . . . . . . Programmer 4 | . . . . . . . . 2 . . . 1 . . . . . . . . 1 M Guard 2 | . . . . . . . . . . . . . . . . . . . . . 2 Striker 1 | . . . . . . . . . . . . . . . . . . . 1 . . Executioner 1 | . . . . . . . . . . . 1 . . . . . . . . . . Best Kill Streak 8 | . 4 . . . . 1 4 8 . 1 3 1 1 2 . . . 6 2 1 2 Combat Bots Only 6 | . 3 . . . . . 2 6 . 1 3 1 1 2 . . . 5 1 . 2 Max Kills in Single Turn 4 | . 1 . . . . 1 4 3 . 1 2 1 1 1 . . . 4 1 1 1 Gunslinging . | . . . . . . . . . . . . . . . . . . . . . . Exploded 4 | . . . . . . . 2 2 . . 2 . . . . . . 4 . . . Melee 1 | . . . . . . . . . . . . . . 1 . . . . 1 . 1 Uniques/NPCs Destroyed 2 | . . . . . . . . . . . . . . . . . . . . . 2 MAIN.C Shell (-1/Command) MAIN.C (-1/Command) Combat | -11 -10 -10 -10 -9 -8 -7 -6 -5 -5 -5 -5 -4 -4 -4 -4 -4 -3 -3 -2 -1 -1 -------- Run | Yrd Mat Min Exi Min Mat Fac Fac Fac Upp Upp War Pro Fac Upp Upp Zhi Pro Res Res Acc Com Hostile Shots Fired 387 | . 24 2 . 5 6 . 14 13 3 8 39 6 10 62 2 . . 21 8 7 157 Missed 169 | . 11 1 . 2 1 . 6 6 1 2 21 3 4 18 2 . . 11 4 4 72 Hits 218 | . 13 1 . 3 5 . 8 7 2 6 18 3 6 44 . . . 10 4 3 85 Melee 1 | . . . . . . . . . . . . . . . . . . . . . 1 Projectile 217 | . 13 1 . 3 5 . 8 7 2 6 18 3 6 44 . . . 10 4 3 84 AOE 6 | . . . . . . . . . . . . . . . . . . . . . 6 Critical Strikes 9 | . . . . . . . . 1 . . 2 . 1 1 . . . . 1 . 3 Actively Blocked 1 | . . . . . . . . . . . . . 1 . . . . . . . . Part Disruptions 3 | . . . . . . . . . . . . . . . . . . . . . 3 Damage Taken 5693 | . 133 68 . 27 74 52 130 111 43 96 238 62 92 408 . . . 250 100 69 3740 Core 846 | . 105 . . 7 13 . . 35 . 12 19 . . 83 . . . 28 . . 544 Absorbed by Shields 340 | . . . . . . . . . . . 77 . . 263 . . . . . . . Ignored by Resistances 5 | . . . . . . . 2 3 . . . . . . . . . . . . . Regen/Repaired (Parts) 106 | . . . . . . . . . . . 8 . 98 . . . . . . . . Core Remaining (%) 89 | 100 . . . 55 97 100 100 . . . . 93 . . . . 92 97 100 . 60 Volleys Fired 147 | . 7 . . . . 3 3 19 . . 25 4 5 13 . 19 . 3 27 . 19 Largest 2 | . 1 . . . . 1 1 2 . . 2 2 2 2 . 2 . 1 2 . 2 Hottest 153 | . 20 . . . . 5 39 68 . . 68 68 68 68 . 68 . 43 153 . 80 Shots Fired 243 | . 7 . . . . 3 3 31 . . 43 8 7 26 . 38 . 3 47 . 27 Gun 208 | . 7 . . . . . . 26 . . 36 8 7 26 . 38 . . 40 . 20 Cannon 8 | . . . . . . . . . . . 1 . . . . . . . 7 . . Launcher 22 | . . . . . . . 1 5 . . 6 . . . . . . 3 . . 7 Special 5 | . . . . . . 3 2 . . . . . . . . . . . . . . Kinetic 208 | . 7 . . . . . . 26 . . 36 8 7 26 . 38 . . 40 . 20 Thermal 7 | . . . . . . . . . . . . . . . . . . . 7 . . Explosive 15 | . . . . . . . 1 5 . . 6 . . . . . . 3 . . . Electromagnetic 7 | . . . . . . . . . . . . . . . . . . . . . 7 Entropic 1 | . . . . . . . . . . . 1 . . . . . . . . . . Robot Hit Streak 36 | . 6 . . . . 1 3 11 . . 11 4 4 7 . 17 . 18 36 . 4 Robot Miss Streak 4 | . 1 . . . . 2 . 3 . . 3 1 . 1 . 1 . . 4 . 2 Penetration Max 2 | . . . . . . . . 1 . . 2 . . . . 1 . . 1 . . Secondary Targets 2 | . . . . . . . . . . . 1 . . 1 . . . . . . . Max Gunslinging Chain 1 | . . . . . . . . . . . 1 . . 1 . . . . . . . Shots Hit Robots 248 | . 6 . . . . 2 14 35 . 1 28 5 3 23 . 39 . 8 38 1 45 Core Hits 133 | . 5 . . . . . 7 19 . . 21 1 2 10 . 9 . 9 13 1 36 Critical Kills 15 | . . . . . . . . 6 . . 2 1 1 1 . 1 . . 2 . 1 Critical Parts Destroyed 47 | . . . . . . 1 3 7 . 1 10 1 1 6 . 7 . . 9 . 1 Critical Strikes 73 | . . . . . . 1 3 13 . 1 12 2 2 7 . 17 . . 12 . 3 Destroy 57 | . . . . . . . . 9 . . 11 2 2 5 . 15 . . 10 . 3 Smash 16 | . . . . . . 1 3 4 . 1 1 . . 2 . 2 . . 2 . . Melee Attacks 165 | . . . . . 1 1 13 26 . 1 1 . 13 7 . 4 . 30 18 6 44 Impact 126 | . . . . . 1 1 13 26 . 1 1 . 13 7 . 4 . 30 17 6 6 Slashing . | . . . . . . . . . . . . . . . . . . . . . . Piercing . | . . . . . . . . . . . . . . . . . . . . . . Entropic 38 | . . . . . . . . . . . . . . . . . . . . . 38 Sneak Attacks 20 | . . . . . . 1 6 4 . 1 1 . . . . . . 3 4 . . Combat Hostiles 3 | . . . . . . . . 1 . 1 1 . . . . . . . . . . Follow-up Attacks 6 | . . . . . . . . . . . . . . . . . . . . . 6 Damage Inflicted 11659 | . 87 . . . . 86 1136 1802 . 134 1386 41 22 363 . 713 . 1090 1133 46 3620 Guns 1375 | . 75 . . . . . . 151 . . 266 41 22 149 . 323 . . 268 . 80 Cannons . | . . . . . . . . . . . . . . . . . . . . . . Explosions 2739 | . . . . . . . 143 583 . . 1057 . . . . . . 567 60 . 329 Melee 7533 | . . . . . . 86 993 1068 . 134 63 . . 214 . 390 . 523 805 46 3211 Ramming 12 | . 12 . . . . . . . . . . . . . . . . . . . . Kinetic 1375 | . 75 . . . . . . 151 . . 266 41 22 149 . 323 . . 268 . 80 Thermal . | . . . . . . . . . . . . . . . . . . . . . . Explosive 2410 | . . . . . . . 143 583 . . 1057 . . . . . . 567 60 . . Electromagnetic 329 | . . . . . . . . . . . . . . . . . . . . . 329 Impact 4322 | . . . . . . 86 993 1068 . 134 63 . . 214 . 390 . 523 805 46 . Slashing . | . . . . . . . . . . . . . . . . . . . . . . Piercing . | . . . . . . . . . . . . . . . . . . . . . . Entropic 3211 | . . . . . . . . . . . . . . . . . . . . . 3211 Highest Corruption 3 | . . 1 1 1 . 1 . . . . . 1 . . . . . . 2 . 3 Average Corruption 1 | . . 1 1 1 . 1 . . . . . 1 . . . . . . 1 . 1 Corruption Purged 2 | . . . . . . . . . . . . . . . . . . . 2 . . Corruption Blocked . | . . . . . . . . . . . . . . . . . . . . . . Effects 13 | . . 2 2 . . 1 . . . . . 1 . . . . . . 2 . 5 Message Errors 1 | . . . . . . . . . . . . 1 . . . . . . . . . Matter Fused 6 | . . . 2 . . 1 . . . . . . . . . . . . 1 . 2 Parts Rejected 1 | . . . . . . . . . . . . . . . . . . . . . 1 Data Loss (minor) 1 | . . 1 . . . . . . . . . . . . . . . . . . . Data Loss (major) 2 | . . 1 . . . . . . . . . . . . . . . . 1 . . Alerts 1 | . . . . . . . . . . . . . . . . . . . . . 1 Weapon Failures 1 | . . . . . . . . . . . . . . . . . . . . . 1 Overload Shots . | . . . . . . . . . . . . . . . . . . . . . . Overflow Damage 2065 | . . . . . . 86 377 423 . 134 143 . . 164 . 128 . 163 447 . . Projectiles 18 | . . . . . . . . 18 . . . . . . . . . . . . . Explosions 109 | . . . . . . . . . . . 80 . . . . . . 29 . . . Melee 1938 | . . . . . . 86 377 405 . 134 63 . . 164 . 128 . 134 447 . . Knockbacks 16 | . . . . . . . 2 8 . 1 1 . . . . . . 2 2 . . Impact 15 | . . . . . . . 2 7 . 1 1 . . . . . . 2 2 . . Kinetic . | . . . . . . . . . . . . . . . . . . . . . . Secondary 1 | . . . . . . . . 1 . . . . . . . . . . . . . Self-Inflicted Damage 10 | . 5 . . . . . . . . . . . . . . . . . . . 5 Shots 1 | . . . . . . . . . . . . . . . . . . . . . 1 Rammed 2 | . 2 . . . . . . . . . . . . . . . . . . . . Targets Rammed 2 | . 2 . . . . . . . . . . . . . . . . . . . . Kicked . | . . . . . . . . . . . . . . . . . . . . . . Crushed . | . . . . . . . . . . . . . . . . . . . . . . Highest Temperature 400 | . . . . . 36 . 18 . . 108 . . 94 65 232 . . 92 61 221 400 Average Temperature 33 | . . . . . 13 . 11 . . 60 . . 39 40 116 . . 18 16 58 78 Received Heat Transfer 327 | . 57 9 . . 27 . 9 45 18 18 54 . . . . . . 18 9 18 45 Siege Activations . | . . . . . . . . . . . . . . . . . . . . . . Martial Activations . | . . . . . . . . . . . . . . . . . . . . . . Shielding Activations . | . . . . . . . . . . . . . . . . . . . . . . Robots Disrupted . | . . . . . . . . . . . . . . . . . . . . . . Combat Hostiles . | . . . . . . . . . . . . . . . . . . . . . . Robots Corrupted 23 | . . . . . . . 7 5 . 1 1 . . 1 . . . 2 4 . 2 Combat Hostiles 10 | . . . . . . . 1 4 . 1 1 . . 1 . . . . . . 2 Parts Fried 26 | . . . . . . 1 6 9 . 1 . . . 3 . . . 3 3 . . Impact Corruptions 50 | . . . . . . 1 12 14 . 2 1 . . 4 . 3 . 4 9 . . Robots Melted . | . . . . . . . . . . . . . . . . . . . . . . Combat Hostiles . | . . . . . . . . . . . . . . . . . . . . . . Parts Melted 2 | . . . . . . . . 2 . . . . . . . . . . . . . Heat Transferred . | . . . . . . . . . . . . . . . . . . . . . . Parts Sabotaged 2 | . . . . . . . . . . . . . . . . . . . . . 2 Parts Stolen . | . . . . . . . . . . . . . . . . . . . . . . Parts Stripped . | . . . . . . . . . . . . . . . . . . . . . . Power Chain Reactions . | . . . . . . . . . . . . . . . . . . . . . . Alert | -11 -10 -10 -10 -9 -8 -7 -6 -5 -5 -5 -5 -4 -4 -4 -4 -4 -3 -3 -2 -1 -1 ------- Run | Yrd Mat Min Exi Min Mat Fac Fac Fac Upp Upp War Pro Fac Upp Upp Zhi Pro Res Res Acc Com Maximum Alert Level 2 | . . . . . . . . 1 . . . . . . . . . 1 2 1 1 Low Security (%) 77 | 100 100 100 . 100 100 100 100 98 . . . . 100 . . . . 91 7 . 90 Level 1 17 | . . . . . . . . 1 . . . . . . . . . 8 66 100 9 Level 2 5 | . . . . . . . . . . . . . . . . . . . 25 . . Level 3 . | . . . . . . . . . . . . . . . . . . . . . . Level 4 . | . . . . . . . . . . . . . . . . . . . . . . Level 5 . | . . . . . . . . . . . . . . . . . . . . . . High Security . | . . . . . . . . . . . . . . . . . . . . . . Max Security . | . . . . . . . . . . . . . . . . . . . . . . Peak Influence 474 | . 70 62 . . 45 26 73 200 . . . . 89 . . . . 231 474 268 213 Initial 261 | . . 25 . . . . . . . . . . 49 . . . . . 129 261 152 Average 108 | . 25 34 . . 10 4 17 33 . . . . 28 . . . . 91 339 247 171 Influence Increases 3908 | . 75 127 . . 45 80 272 489 150 125 422 139 168 181 . 15 . 495 744 37 344 Destroy 0b10 Robot/C 1240 | . 60 20 . . . . 80 260 . 20 320 100 20 120 . . . 100 40 . 100 Destroy 0b10 Robot/NC 170 | . 5 . . . . 5 50 30 . . . . . . . 15 . 25 35 5 . Destroy Leader 206 | . 10 . . . . . 22 76 . . . 20 10 10 . . . 16 30 2 10 Allied During Kill 131 | . . 2 . . . . 1 15 . . 87 19 1 6 . . . . . . . Successful Hack 282 | . . . . . 15 75 31 6 . . . . 53 . . . . 21 66 . 15 Disable Machine 180 | . . 15 . . 15 . . . . . . . 15 . . . . 45 45 . 45 Anti-Garrison Action 300 | . . . . . . . . . . . . . . . . . . . 300 . . Destroy Structure 304 | . . . . . . . 13 42 . . . . 24 . . . . 78 123 15 9 Partial Spotted 225 | . . . . . 15 . 30 15 . . . . 45 . . . . 90 . 15 15 Lose Combat Pursuer 870 | . . 90 . . . . 45 45 150 105 15 . . 45 . . . 120 105 . 150 Influence Decreases 3702 | . 10 160 32 . 45 80 272 297 192 109 425 223 229 186 13 15 . 264 538 236 376 Entered New Map 908 | . . 40 32 . . . . . 72 29 166 163 30 8 4 . . . 102 176 86 Time Decay 2311 | . 10 110 . . 45 80 262 214 100 40 159 40 179 178 9 15 . 244 416 60 150 Lost Part 190 | . . 10 . . . . . . . . . . . . . . . 20 20 . 140 Lost Ally 293 | . . . . . . . 10 83 20 40 100 20 20 . . . . . . . . Squads Dispatched 42 | . . . . . 1 6 7 11 . . . . 5 . . . . 5 5 1 1 Investigation 20 | . . . . . . 4 2 6 . . . . 3 . . . . 2 3 . . Extermination 10 | . . . . . . 1 2 1 . . . . 1 . . . . 3 . 1 1 Reinforcement 8 | . . . . . 1 1 2 1 . . . . 1 . . . . . 2 . . Assault . | . . . . . . . . . . . . . . . . . . . . . . Garrison 4 | . . . . . . . 1 3 . . . . . . . . . . . . . Intercept . | . . . . . . . . . . . . . . . . . . . . . . Searches Triggered . | . . . . . . . . . . . . . . . . . . . . . . Construction Impeded . | . . . . . . . . . . . . . . . . . . . . . . Haulers Reinforced 4 | . . . . . . . 1 1 . . . . . . . . . . 2 . . Active Scanning Responses . | . . . . . . . . . . . . . . . . . . . . . . Cargo Convoy Interrupts . | . . . . . . . . . . . . . . . . . . . . . . Stealth | -11 -10 -10 -10 -9 -8 -7 -6 -5 -5 -5 -5 -4 -4 -4 -4 -4 -3 -3 -2 -1 -1 --------- Run | Yrd Mat Min Exi Min Mat Fac Fac Fac Upp Upp War Pro Fac Upp Upp Zhi Pro Res Res Acc Com Distress Signals 25 | . 1 . . . 1 . . . . . . . 1 . . . . . 7 . 15 Communications Jammed . | . . . . . . . . . . . . . . . . . . . . . . Distress Signals . | . . . . . . . . . . . . . . . . . . . . . . Times Spotted 311 | . 7 7 . 3 12 5 22 41 8 11 41 3 8 11 2 . . 23 30 13 64 Peak Tracking Total 41 | . 6 3 . 3 8 2 5 6 7 5 11 4 5 4 2 . . 10 6 12 41 Tactical Retreats 35 | . . 3 . . . . 2 3 6 2 1 . . 2 . . . 5 5 . 6 ECM-based Alert Blocks 1 | . . . . . . . . . . . . . . . . . . 1 . . . Traps | -11 -10 -10 -10 -9 -8 -7 -6 -5 -5 -5 -5 -4 -4 -4 -4 -4 -3 -3 -2 -1 -1 ------- Run | Yrd Mat Min Exi Min Mat Fac Fac Fac Upp Upp War Pro Fac Upp Upp Zhi Pro Res Res Acc Com Traps Triggered 5 | . . 1 . . . . . 1 . . . . . . . . . 3 . . . Indirectly . | . . . . . . . . . . . . . . . . . . . . . . Trap Hack Attempts . | . . . . . . . . . . . . . . . . . . . . . . Triggered . | . . . . . . . . . . . . . . . . . . . . . . Disarmed . | . . . . . . . . . . . . . . . . . . . . . . Reprogrammed . | . . . . . . . . . . . . . . . . . . . . . . Reused . | . . . . . . . . . . . . . . . . . . . . . . Traps Extracted . | . . . . . . . . . . . . . . . . . . . . . . Installed . | . . . . . . . . . . . . . . . . . . . . . . Triggered . | . . . . . . . . . . . . . . . . . . . . . . Machines | -11 -10 -10 -10 -9 -8 -7 -6 -5 -5 -5 -5 -4 -4 -4 -4 -4 -3 -3 -2 -1 -1 ---------- Run | Yrd Mat Min Exi Min Mat Fac Fac Fac Upp Upp War Pro Fac Upp Upp Zhi Pro Res Res Acc Com Machines Disabled 17 | . . 1 . . 1 . . . . . 2 . 1 1 . . . 3 5 . 3 Max in Single Turn 1 | . . . . . 1 . . . . . 1 . 1 1 . . . 1 1 . 1 Garrison Access 7 | . . . . . . . 1 . . . . . . . . . . 2 4 . . Machines Repaired . | . . . . . . . . . . . . . . . . . . . . . . Machines Dismantled . | . . . . . . . . . . . . . . . . . . . . . . Machines Sabotaged . | . . . . . . . . . . . . . . . . . . . . . . Overloaded Fab Kills . | . . . . . . . . . . . . . . . . . . . . . . Hacking | -11 -10 -10 -10 -9 -8 -7 -6 -5 -5 -5 -5 -4 -4 -4 -4 -4 -3 -3 -2 -1 -1 --------- Run | Yrd Mat Min Exi Min Mat Fac Fac Fac Upp Upp War Pro Fac Upp Upp Zhi Pro Res Res Acc Com Machines Accessed 88 | . . 1 2 . 3 15 8 9 2 . 5 . 9 2 . 5 . 10 9 4 4 Terminals 35 | . . . . . 2 7 4 4 . . . . 4 . . . . 4 3 3 4 Fabricators 13 | . . . . . . 4 1 3 . . . . 2 . . . . 2 1 . . Repair Stations 4 | . . . . . . 2 . . . . . . 1 . . . . . 1 . . Recycling Units 3 | . . . . . . 1 1 . . . . . 1 . . . . . . . . Scanalyzers 7 | . . . . . 1 1 . . . . . . 1 . . . . 2 1 1 . Garrison Access 9 | . . . . . . . 2 2 . . . . . . . . . 2 3 . . Total Hacks 212 | . . 1 2 . 7 36 21 22 7 . 11 . 24 5 . 18 . 24 16 11 7 Successful 125 | . . 1 2 . 4 17 14 8 7 . 11 . 13 5 . 18 . 15 5 3 2 Failed 86 | . . . . . 3 19 7 14 . . . . 11 . . . . 8 11 8 5 Catastrophic 15 | . . . . . 1 4 2 1 . . . . . . . . . 2 4 . 1 Database Lockouts 1 | . . . . . . . . . . . . . . . . . . 1 . . . Manual 59 | . . . 1 . 4 12 11 8 . . . . 10 . . . . 7 3 . 3 Terminals 87 | . . . . . 5 19 11 10 . . . . 9 . . . . 11 7 8 7 Fabricators 33 | . . . . . . 8 4 8 . . . . 7 . . . . 5 1 . . Repair Stations 12 | . . . . . . 6 . . . . . . 3 . . . . . 3 . . Recycling Units 6 | . . . . . . 1 3 . . . . . 2 . . . . . . . . Scanalyzers 18 | . . . . . 2 2 . . . . . . 3 . . . . 6 2 3 . Garrison Access 12 | . . . . . . . 3 4 . . . . . . . . . 2 3 . . Terminal Hacks 73 | . . 1 2 . 2 6 5 3 7 . 11 . 2 5 . 18 . 5 1 3 2 Record 22 | . . . 1 . . . . . 6 . 4 . . 4 . 6 . 1 . . . Part Schematic 6 | . . . . . . . 1 . . . . . 1 . . 4 . . . . . Robot Analysis 4 | . . . . . . . . . . . . . . . . 4 . . . . . Prototype ID Bank 12 | . . . . . . . . . . . 6 . . . . 4 . 2 . . . Open Door 8 | . . 1 . . . . . . 1 . 1 . . 1 . . . . . 3 1 Branch Access Points 4 | . . . . . 1 1 . 1 . . . . 1 . . . . . . . . Fabricator Index 1 | . . . . . . . 1 . . . . . . . . . . . . . . Scanalyzer Index 1 | . . . . . 1 . . . . . . . . . . . . . . . . Alert Level 1 | . . . . . . 1 . . . . . . . . . . . . . . . Locate Traps 2 | . . . . . . 1 . 1 . . . . . . . . . . . . . Maintenance Status 3 | . . . . . . 1 . . . . . . . . . . . 1 . . 1 Security Status 1 | . . . . . . . 1 . . . . . . . . . . . . . . Recall Extermination 2 | . . . . . . 1 . . . . . . . . . . . 1 . . . Hauler Manifests 2 | . . . . . . 1 1 . . . . . . . . . . . . . . Registered Components 2 | . . . . . . . 1 . . . . . . . . . . . 1 . . Zone Layout 1 | . . . . . . . . 1 . . . . . . . . . . . . . Proto ID Catalog 1 | . . . 1 . . . . . . . . . . . . . . . . . . Fabricator Hacks 14 | . . . . . . 1 1 3 . . . . 5 . . . . 4 . . . Network Status 4 | . . . . . . 1 . 1 . . . . 1 . . . . 1 . . . Load Schematic 7 | . . . . . . . 1 2 . . . . 2 . . . . 2 . . . Build 3 | . . . . . . . . . . . . . 2 . . . . 1 . . . Repair Station Hacks 7 | . . . . . . 3 . . . . . . 3 . . . . . 1 . . Scan Component 4 | . . . . . . 1 . . . . . . 2 . . . . . 1 . . Repair 2 | . . . . . . 1 . . . . . . 1 . . . . . . . . Refit 1 | . . . . . . 1 . . . . . . . . . . . . . . . Recycling Unit Hacks 2 | . . . . . . 1 1 . . . . . . . . . . . . . . Report Inventory 2 | . . . . . . 1 1 . . . . . . . . . . . . . . Scanalyzer 7 | . . . . . 2 1 . . . . . . 1 . . . . 2 1 . . Insert Component 2 | . . . . . 1 . . . . . . . . . . . . 1 . . . Analyze 1 | . . . . . 1 . . . . . . . . . . . . . . . . Retrieve Study 4 | . . . . . . 1 . . . . . . 1 . . . . 1 1 . . Garrison Access Hacks 5 | . . . . . . . 1 . . . . . . . . . . 2 2 . . Seal Access 5 | . . . . . . . 1 . . . . . . . . . . 2 2 . . Unauthorized Hacks 17 | . . . . . . 5 6 2 . . . . 2 . . . . 2 . . . Terminals 6 | . . . . . . 2 2 . . . . . 1 . . . . 1 . . . Assimilate 3 | . . . . . . 1 1 . . . . . 1 . . . . . . . . Botnet 3 | . . . . . . 1 1 . . . . . . . . . . 1 . . . Fabricators 5 | . . . . . . 3 1 . . . . . . . . . . 1 . . . Fabnet 4 | . . . . . . 3 1 . . . . . . . . . . . . . . Recompile 1 | . . . . . . . . . . . . . . . . . . 1 . . . Repair Stations . | . . . . . . . . . . . . . . . . . . . . . . Recycling Units 3 | . . . . . . . 2 . . . . . 1 . . . . . . . . Reject 1 | . . . . . . . 1 . . . . . . . . . . . . . . Recyclers 2 | . . . . . . . 1 . . . . . 1 . . . . . . . . Scanalyzers . | . . . . . . . . . . . . . . . . . . . . . . Garrison Access 3 | . . . . . . . 1 2 . . . . . . . . . . . . . Reprogram 3 | . . . . . . . 1 2 . . . . . . . . . . . . . Data Cores Recovered 1 | . . . . . . . 1 . . . . . . . . . . . . . . Used . | . . . . . . . . . . . . . . . . . . . . . . Hacking Detections 51 | . . . . . 3 8 5 8 . . . . 8 . . . . 5 7 4 3 Full Trace Events 16 | . . . . . . 4 1 4 . . . . 3 . . . . 1 3 . . Feedback Events 4 | . . . . . . 1 . . . . . . . . . . . 1 2 . . Corruption 3 | . . . . . . 1 . . . . . . . . . . . . 2 . . Hackware Fried 1 | . . . . . . . . . . . . . . . . . . 1 . . . Feedback Blocked . | . . . . . . . . . . . . . . . . . . . . . . Robot Schematics Acquired . | . . . . . . . . . . . . . . . . . . . . . . Robots Built . | . . . . . . . . . . . . . . . . . . . . . . Authchips . | . . . . . . . . . . . . . . . . . . . . . . Time . | . . . . . . . . . . . . . . . . . . . . . . Total Robot Build Rating . | . . . . . . . . . . . . . . . . . . . . . . Part Schematics Acquired 7 | . . . . . 1 . 1 . . . . . 1 . . 4 . . . . . Parts Built 5 | . . . . . . . . . . . . . 3 . . . . 2 . . . Authchips 1 | . . . . . . . . . . . . . . . . . . 1 . . . Time 290 | . . . . . . . . . . . . . 184 . . . . 106 . . . Total Part Build Rating 30 | . . . . . . . . . . . . . 18 . . . . 12 . . . Part Studies Acquired 4 | . . . . . . 1 . . . . . . 1 . . . . 1 1 . . Parts Repaired 2 | . . . . . . 1 . . . . . . 1 . . . . . . . . Time 100 | . . . . . . 44 . . . . . . 56 . . . . . . . . Parts Recycled . | . . . . . . . . . . . . . . . . . . . . . . Recycled Matter . | . . . . . . . . . . . . . . . . . . . . . . Retrieved Matter . | . . . . . . . . . . . . . . . . . . . . . . Retrieved Components . | . . . . . . . . . . . . . . . . . . . . . . Parts Scanalyzed 1 | . . . . . 1 . . . . . . . . . . . . . . . . Part Schematics Acquired 1 | . . . . . 1 . . . . . . . . . . . . . . . . Parts Damaged 1 | . . . . . 1 . . . . . . . . . . . . . . . . Bothacking | -11 -10 -10 -10 -9 -8 -7 -6 -5 -5 -5 -5 -4 -4 -4 -4 -4 -3 -3 -2 -1 -1 ------------ Run | Yrd Mat Min Exi Min Mat Fac Fac Fac Upp Upp War Pro Fac Upp Upp Zhi Pro Res Res Acc Com Used RIF Installer . | . . . . . . . . . . . . . . . . . . . . . . Robots Hacked 13 | . . . . . . 1 2 3 1 2 3 . . . . . . . 1 . . Non-combat 1 | . . . . . . . 1 . . . . . . . . . . . . . . Combat 12 | . . . . . . 1 1 3 1 2 3 . . . . . . . 1 . . Robot Hacks Applied 4 | . . . . . . 1 2 . . . . . . . . . . . 1 . . parse_system 3 | . . . . . . 1 1 . . . . . . . . . . . 1 . . find_chute 1 | . . . . . . . 1 . . . . . . . . . . . . . . Relay Couplers Released 5 | . . . . . . . . 4 . . . . . . . . . . 1 . . Machine Destruction 1 | . . . . . . . . . . . . . . . . . . . 1 . . Programmers 4 | . . . . . . . . 4 . . . . . . . . . . . . . Fabnet Peak Effective % 9 | . . . . . . . 9 6 6 6 6 1 1 1 1 1 . . . . . Autooverrided 10 | . . . . . . . 1 3 1 2 3 . . . . . . . . . . Robots Rewired 5 | . . . . . . . . . . . 5 . . . . . . . . . . Allies Hacked . | . . . . . . . . . . . . . . . . . . . . . . Hacks Repelled . | . . . . . . . . . . . . . . . . . . . . . . Allies | -11 -10 -10 -10 -9 -8 -7 -6 -5 -5 -5 -5 -4 -4 -4 -4 -4 -3 -3 -2 -1 -1 -------- Run | Yrd Mat Min Exi Min Mat Fac Fac Fac Upp Upp War Pro Fac Upp Upp Zhi Pro Res Res Acc Com Total Allies 24 | . . 2 . . . 1 4 5 1 2 8 . 1 . . . . . . . . Largest Group 6 | . . 2 2 . . 1 2 3 1 1 6 3 3 2 . . . . . . . Highest-Rated Group 321 | . . 50 50 . . 10 50 91 29 30 321 146 150 109 . . . . . . . Highest-Rated Ally 82 | . . 31 31 . . 10 30 82 29 30 68 64 64 64 . . . . . . . Total Orders 9 | . . . . . . . . . . . 4 . 4 1 . . . . . . . STAY 5 | . . . . . . . . . . . 2 . 2 1 . . . . . . . FOLLOW 4 | . . . . . . . . . . . 2 . 2 . . . . . . . . Ally Attacks 94 | . . 6 . . . . 4 13 11 4 49 6 1 . . . . . . . . Total Damage 2664 | . . 85 . . . . 59 226 97 109 1860 189 39 . . . . . . . . Kills 18 | . . 1 . . . . 1 2 . . 10 4 . . . . . . . . . Allies Corrupted 2 | . . . . . . . . . . 1 1 . . . . . . . . . . Allies Melted 2 | . . . . . . . . . . . . . . . . . . . 1 . 1 Intel | -11 -10 -10 -10 -9 -8 -7 -6 -5 -5 -5 -5 -4 -4 -4 -4 -4 -3 -3 -2 -1 -1 ------- Run | Yrd Mat Min Exi Min Mat Fac Fac Fac Upp Upp War Pro Fac Upp Upp Zhi Pro Res Res Acc Com Active Infowar (turns) 4398 | . . . . . . . . . 214 99 350 218 577 400 71 149 202 587 1016 123 392 Optics 3841 | . . . . . . . . . . . 106 218 577 400 71 149 202 587 1016 123 392 IFF 1482 | . . . . . . . . . 214 99 244 139 64 353 . 69 202 98 . . . Jamming 21 | . . . . . . . . . . . . . . . . . . . 21 . . ECM 65 | . . . . . . . . . . . . . . . . . . 64 1 . . Robot Analysis Total 4 | . . . . . . . . . . . . . . . . 4 . . . . . Derelict Logs Recovered 7 | . . 1 . . . . . . 2 . . 1 . 1 2 . . . . . . Drone Launches . | . . . . . . . . . . . . . . . . . . . . . . Drone Recoveries . | . . . . . . . . . . . . . . . . . . . . . . Exploration | -11 -10 -10 -10 -9 -8 -7 -6 -5 -5 -5 -5 -4 -4 -4 -4 -4 -3 -3 -2 -1 -1 ------------- Run | Yrd Mat Min Exi Min Mat Fac Fac Fac Upp Upp War Pro Fac Upp Upp Zhi Pro Res Res Acc Com Turns Passed 7232 | 25 59 223 156 3 201 558 698 628 214 99 633 218 577 400 71 149 202 587 1016 123 392 Spaces Moved 19398 | 39 79 477 353 8 433 1251 1783 1201 730 370 1507 617 1373 631 354 213 432 1940 3991 428 1188 Core 95 | 39 56 . . . . . . . . . . . . . . . . . . . . Treads . | . . . . . . . . . . . . . . . . . . . . . . Legs . | . . . . . . . . . . . . . . . . . . . . . . Wheels . | . . . . . . . . . . . . . . . . . . . . . . Hover . | . . . . . . . . . . . . . . . . . . . . . . Flight 19303 | . 23 477 353 8 433 1251 1783 1201 730 370 1507 617 1373 631 354 213 432 1940 3991 428 1188 Fastest Speed 7 | 50 37 37 37 37 24 20 14 12 19 7 17 17 7 7 7 17 17 7 15 7 7 Average Speed 18 | 50 46 37 37 37 24 21 23 21 19 18 20 17 16 16 16 17 17 16 15 11 12 Slowest Speed 96 | 50 50 37 37 37 37 88 26 24 19 19 96 17 17 17 17 20 17 17 88 12 91 Overloaded Moves 311 | . . . . . . . 10 7 . 16 . . 36 10 29 . . 36 . 25 142 Propulsion Burnouts . | . . . . . . . . . . . . . . . . . . . . . . Robots Hopped 92 | . . 4 . 1 19 5 10 12 1 . 2 . 6 . . . . 11 14 3 4 Potential Cave-ins . | . . . . . . . . . . . . . . . . . . . . . . Cave-ins Triggered . | . . . . . . . . . . . . . . . . . . . . . . Exploration Rate (%) 44 | 4 26 68 70 7 32 28 23 21 77 50 92 54 18 61 54 63 71 41 78 13 30 Regions Visited 21 Branch Regions 12 Pre-discovered Areas 8 | . . 1 1 . . . . . 1 . 1 . . . 1 3 . . . . . Known Exits Taken 7 | . . 1 1 1 . . . 1 . . . 1 1 . . . . 1 . . . Unknown Exits Taken 14 | 1 1 . . . 1 1 1 . 1 1 1 . . 1 1 1 1 . 1 1 . Scrap Searched 15 | . . 2 . . . . . . 2 . . 4 . 1 3 . 3 . . . . Spaces Dug 57 | . . . . . . . . 6 . . . . 12 2 . . . 21 8 5 3 Terrain Destroyed 203 | . . . . . . . 13 21 . . 48 . 12 2 . . . 41 58 5 3 Melee 54 | . . . . . . . . 6 . . . . 12 2 . . . 21 5 5 3 Projectile 4 | . . . . . . . . . . . . . . . . . . . 4 . . AOE 145 | . . . . . . . 13 15 . . 48 . . . . . . 20 49 . . Terrain Rammed . | . . . . . . . . . . . . . . . . . . . . . . Walls Destroyed . | . . . . . . . . . . . . . . . . . . . . . . Machines Disabled . | . . . . . . . . . . . . . . . . . . . . . . Actions | -11 -10 -10 -10 -9 -8 -7 -6 -5 -5 -5 -5 -4 -4 -4 -4 -4 -3 -3 -2 -1 -1 --------- Run | Yrd Mat Min Exi Min Mat Fac Fac Fac Upp Upp War Pro Fac Upp Upp Zhi Pro Res Res Acc Com Total 22345 | 43 93 517 379 6 510 1525 2020 1475 803 397 1788 720 1682 884 366 279 559 2138 4309 485 1367 Wait 2203 | . . 41 18 . 62 254 195 196 66 26 150 94 273 227 12 19 128 127 180 50 85 Move 19198 | 38 78 468 352 5 394 1240 1764 1176 727 369 1502 616 1361 630 353 212 431 1917 3965 421 1179 Hop 86 | . . 4 . 1 19 5 8 12 1 . 2 . 5 . . . . 11 11 3 4 Pick Up 98 | 5 2 . 4 . 12 4 8 8 3 . 11 1 7 1 . 4 . 5 17 . 6 Fast Attach 97 | . 2 3 . . 7 4 7 7 . . 18 1 1 1 1 6 . 14 20 . 5 Attach 38 | . 1 1 1 . 3 1 2 1 . . 3 . 3 . . 1 . 4 3 2 12 Detach 9 | . . . . . 1 1 1 . . . 1 . . . . . . 1 2 . 2 Swap 126 | . . . . . 1 5 7 19 3 1 13 2 8 3 . 5 . 14 33 3 9 Drop 148 | . 1 . 4 . 10 7 12 11 3 . 30 2 6 2 . 9 . 12 33 . 6 Fire 147 | . 7 . . . . 3 3 19 . . 25 4 5 13 . 19 . 3 27 . 19 Melee 159 | . . . . . 1 1 13 26 . 1 1 . 13 7 . 4 . 30 18 6 38 Ram 2 | . 2 . . . . . . . . . . . . . . . . . . . . Kick . | . . . . . . . . . . . . . . . . . . . . . . Crush . | . . . . . . . . . . . . . . . . . . . . . . Escape Stasis . | . . . . . . . . . . . . . . . . . . . . . . Rewire 34 | . . . . . . . . . . . 32 . . . . . . . . . 2 Trap . | . . . . . . . . . . . . . . . . . . . . . . Miscellaneous . | . . . . . . . . . . . . . . . . . . . . . . Route ------- -11/Scrapyard -10/Materials -10/Mines (discovered 3 exits: [*Mat x2] / *Exi) -10/Exiles (discovered 2 exits: *Min x2) -9/Mines -8/Materials -7/Factory (discovered 4 exits: *Fac / Sto / Low x2) -6/Factory (discovered 2 exits: *Fac / [*Low]) -5/Factory (discovered 4 exits: *Upp x2 / Ext x2) -5/Upper Caves -5/Upper Caves (discovered 2 exits: *Fac / *War) -5/Warlord -4/Proximity Caves -4/Factory (discovered 3 exits: *Res / *Upp x2) -4/Upper Caves -4/Upper Caves -4/Zhirov -3/Proximity Caves -3/Research (discovered 3 exits: *Res x2 / Qua) -2/Research (discovered 4 exits: *Acc x3 / *Tes) -1/Access -1/Command (discovered 2 exits: [*Sur x2]) 0b11 Command History --------- Turn | Location | Event 5 | -11/Scrapyard | Discovered new exit (range 15) 26 | -11/Scrapyard | Entered Materials 80 | -10/Materials | Discovered new exit (range 13) 85 | -10/Materials | Entered Mines 101 | -10/Mines | Discovered new exit (range 10) 133 | -10/Mines | Met a Derelict who couldn't figure out how to use a Trap Extractor 195 | -10/Mines | Discovered new exit (range 15) 246 | -10/Mines | Deemed a non-threat by the Exiles lab entrance 246 | -10/Mines | Discovered new exit (range 5) 247 | -10/Mines | Identified exit to Exiles 301 | -10/Mines | Build established: Mutant 308 | -10/Mines | Entered Exiles 308 | -10/Exiles | Accompanied by 2 allies 314 | -10/Exiles | Discovered new exit (range 15) 318 | -10/Exiles | Met 8R-AWN 338 | -10/Exiles | Led the pair of lost Derelicts to a safe place 348 | -10/Exiles | Met EX-HEX 369 | -10/Exiles | Met EX-DEC 375 | -10/Exiles | Learned location of Zion (-6) 381 | -10/Exiles | Met EX-BIN 387 | -10/Exiles | Aligned with FarCom system 387 | -10/Exiles | Given EX-Vault access code 395 | -10/Exiles | Opened EX-Vault 399 | -10/Exiles | Found Latent Energy Streamer 407 | -10/Exiles | Warned to stay clear of 0b10 Research branches 413 | -10/Exiles | Exiles lab attacked by MAIN.C 460 | -10/Exiles | Discovered new exit (range 11) 463 | -10/Exiles | Identified exit to Mines 464 | -10/Exiles | Left Exiles lab with Latent Energy Streamer 464 | -10/Exiles | Entered Mines 464 | -9/Mines | Discovered new exit (range 8) 467 | -9/Mines | Identified exit to Materials 467 | -9/Mines | Entered Materials 467 | -8/Materials | Evolved 4 slots: Propulsion x3, Utility x1 547 | -8/Materials | Met 7R-MNS 584 | -8/Materials | Discovered new exit (range 16) 668 | -8/Materials | Entered Factory 668 | -7/Factory | Evolved 2 slots: Propulsion x1, Utility x1 669 | -7/Factory | Caught up to 7R-MNS 719 | -7/Factory | Repaired Broken Cld. VTOL Module 804 | -7/Factory | Build established: Sprinter 1048 | -7/Factory | Identified exit to Storage 1048 | -7/Factory | Identified exit to Lower Caves 1183 | -7/Factory | Discovered new exit (range 4) 1226 | -7/Factory | Entered another Factory area 1226 | -6/Factory | Accompanied by 1 ally 1226 | -6/Factory | Evolved 2 slots: Power x1, Utility x1 1227 | -6/Factory | Caught up to 7R-MNS 1569 | -6/Factory | Discovered new exit (range 8) 1869 | -6/Factory | Discovered new exit (range 6) 1871 | -6/Factory | Garrison activated, responded to threat 1924 | -6/Factory | Entered another Factory area 1924 | -5/Factory | Accompanied by 2 allies 1924 | -5/Factory | Evolved 2 slots: Propulsion x1, Utility x1 1925 | -5/Factory | Caught up to 7R-MNS 2089 | -5/Factory | Identified exit to Upper Caves 2089 | -5/Factory | Identified exit to Extension 2130 | -5/Factory | Garrison activated, responded to threat 2254 | -5/Factory | Build established: Hacker-Sprinter 2320 | -5/Factory | Spotted B-75 Beast 2348 | -5/Factory | Allies destroyed B-75 Beast 2498 | -5/Factory | Local machine network offline 2531 | -5/Factory | 7R-MNS lamented failing the tripod run 2552 | -5/Factory | Entered Upper Caves 2585 | -5/Upper Caves | Learned Factory terminal intel 2586 | -5/Upper Caves | Attracted the attention of an 0b10 checkpoint 2660 | -5/Upper Caves | Build established: Scavenger-Sprinter 2719 | -5/Upper Caves | Discovered new exit (range 14) 2756 | -5/Upper Caves | Learned Armory garrison access intel 2756 | -5/Upper Caves | Learned Research terminal intel 2756 | -5/Upper Caves | Learned Armory security intel 2756 | -5/Upper Caves | Learned 8 Research zone layouts 2766 | -5/Upper Caves | Entered another Upper Caves area 2767 | -5/Upper Caves | Identified exit to Factory 2862 | -5/Upper Caves | Discovered new exit (range 8) 2865 | -5/Upper Caves | Spotted B-75 Beast 2865 | -5/Upper Caves | Entered Warlord 3037 | -5/Warlord | Learned Testing security intel 3037 | -5/Warlord | Learned 4 Testing zone layouts 3037 | -5/Warlord | Learned 4 Command zone layouts 3049 | -5/Warlord | Warlord's base attacked by MAIN.C 3052 | -5/Warlord | Found Prototype Energy Gun 3052 | -5/Warlord | Identified Vortex Rifle 3061 | -5/Warlord | Found Prototype Energy Cannon 3061 | -5/Warlord | Identified Vortex Cannon 3064 | -5/Warlord | Found Prototype Piercing Weapon 3065 | -5/Warlord | Found Prototype Piercing Weapon 3081 | -5/Warlord | Met Warlord 3094 | -5/Warlord | Found Prototype Reactor 3094 | -5/Warlord | Identified Vortex Chain Reactor 3110 | -5/Warlord | Found Prototype Processor 3110 | -5/Warlord | Identified Exp. Targeting Computer 3247 | -5/Warlord | Spotted B-86 Titan 3249 | -5/Warlord | Warlord forces counterattacked 3287 | -5/Warlord | Allies destroyed B-86 Titan 3339 | -5/Warlord | Discovered new exit (range 14) 3341 | -5/Warlord | Lost 5 allies 3365 | -5/Warlord | Opened side exit 3372 | -5/Warlord | Spotted B-86 Titan 3378 | -5/Warlord | Spotted Executioner 3387 | -5/Warlord | Destroyed Executioner 3416 | -5/Warlord | Found Prototype Device 3416 | -5/Warlord | Identified Adv. Kinecellerator 3434 | -5/Warlord | Lost 7 allies 3451 | -5/Warlord | Spotted Striker 3453 | -5/Warlord | Spotted Executioner 3469 | -5/Warlord | Found Prototype Processor 3498 | -5/Warlord | Entered Proximity Caves 3498 | -4/Proximity Caves | Accompanied by 3 allies 3499 | -4/Proximity Caves | Lost 5 allies 3544 | -4/Proximity Caves | Learned Research security intel 3716 | -4/Proximity Caves | Entered Factory 3716 | -4/Factory | Accompanied by 2 allies 3716 | -4/Factory | Evolved 2 slots: Utility x2 3717 | -4/Factory | Loaded intel: 26 terminal locations 3719 | -4/Factory | Discovered new exit (range 5) 3808 | -4/Factory | Discovered new exit (range 18) 3809 | -4/Factory | Identified exit to Upper Caves 3917 | -4/Factory | Fabricated Cld. VTOL Module (x1) 4066 | -4/Factory | Repaired Hyp. Coil Gun 4215 | -4/Factory | Build established: Scavenger-Scout 4229 | -4/Factory | Fabricated Nanoactuators? 4293 | -4/Factory | Entered Upper Caves 4293 | -4/Upper Caves | Accompanied by 2 allies 4440 | -4/Upper Caves | Entered an active Warlord outpost 4443 | -4/Upper Caves | Learned Factory trap positions 4443 | -4/Upper Caves | Learned Extension terminal intel 4443 | -4/Upper Caves | Learned Factory garrison access intel 4452 | -4/Upper Caves | Encountered a Warlord checkpoint 4456 | -4/Upper Caves | Learned 4 Research zone layouts 4473 | -4/Upper Caves | Discovered new exit (range 10) 4602 | -4/Upper Caves | Build established: Scavenger-Sprinter 4693 | -4/Upper Caves | Entered another Upper Caves area 4698 | -4/Upper Caves | Learned Research stockpile data 4751 | -4/Upper Caves | Learned location of Armory (-3) 4758 | -4/Upper Caves | Discovered new exit (range 7) 4764 | -4/Upper Caves | Entered Zhirov 4764 | -4/Zhirov | Discovered new exit (range 3) 4768 | -4/Zhirov | Met Zhirov 4771 | -4/Zhirov | Learned location of Quarantine (-3) 4771 | -4/Zhirov | Learned location of Testing (-2) 4771 | -4/Zhirov | Learned location of Command (-1) 4773 | -4/Zhirov | Zhirov requested help retrieving the SGEMP Prototype 4776 | -4/Zhirov | Found Alien Artifact 4776 | -4/Zhirov | Identified Integrated Reactor 4776 | -4/Zhirov | Installed Integrated Reactor, increased core energy generation (+10) 4898 | -4/Zhirov | Identified Vortex Lance (x2) 4905 | -4/Zhirov | Found Alien Artifact 4913 | -4/Zhirov | Entered Proximity Caves 5073 | -3/Proximity Caves | Received a Behemoth hack from an annoying Tinkerer 5104 | -3/Proximity Caves | Discovered new exit (range 6) 5115 | -3/Proximity Caves | Entered Research 5115 | -3/Research | Evolved 2 slots: Propulsion x1, Utility x1 5116 | -3/Research | Identified exit to Quarantine 5119 | -3/Research | Loaded intel: 22 terminal locations 5123 | -3/Research | Discovered new exit (range 13) 5212 | -3/Research | Found Prototype Processor 5212 | -3/Research | Identified Spectral Analyzer 5227 | -3/Research | Watched by a mysterious "MATRIX" hacker. 5238 | -3/Research | Central database locked down 5276 | -3/Research | Discovered new exit (range 8) 5286 | -3/Research | Identified exit to Research 5358 | -3/Research | Spotted B-86 Titan 5390 | -3/Research | Spotted B-86 Titan 5526 | -3/Research | Fabricated Field Propulsion Drive? 5578 | -3/Research | Build established: Hacker-Sprinter 5680 | -3/Research | Adv. Hacking Suite fried by hacking feedback 5702 | -3/Research | Entered another Research area 5702 | -2/Research | Warlord forces began assault on 0b10 5702 | -2/Research | Evolved 2 slots: Utility x2 5739 | -2/Research | Discovered new exit (range 14) 5739 | -2/Research | Met up with Warlord 5744 | -2/Research | Spotted B-90 Cyclops 5807 | -2/Research | Identified exit to Testing 5812 | -2/Research | Research machine network offline 5883 | -2/Research | Found Prototype Launcher 5883 | -2/Research | Identified Enh. Gamma Bomb Array 6023 | -2/Research | Build established: Scavenger-Sprinter 6042 | -2/Research | Discovered new exit (range 10) 6178 | -2/Research | Borebot progress halted 6203 | -2/Research | Met DD-05H 6210 | -2/Research | Discovered new exit (range 22) 6272 | -2/Research | Spotted Striker 6272 | -2/Research | Spotted Striker 6275 | -2/Research | Destroyed Striker 6287 | -2/Research | Found Prototype Processor 6287 | -2/Research | Identified Exp. Melee Analysis Suite 6432 | -2/Research | Spotted Striker 6598 | -2/Research | Spotted Striker 6609 | -2/Research | Spotted Striker 6650 | -2/Research | Discovered new exit (range 14) 6692 | -2/Research | Found Prototype Processor 6692 | -2/Research | Identified Exp. Core Analyzer (x2) 6694 | -2/Research | Found Exp. Core Analyzer 6709 | -2/Research | Warlord invited to help at Command 6709 | -2/Research | Given Cave Seal Controls access code 6716 | -2/Research | Borebot progress halted 6718 | -2/Research | Entered Access 6718 | -1/Access | Evolved 2 slots: Propulsion x1, Utility x1 6787 | -1/Access | Spotted B-99 Colossus 6835 | -1/Access | Discovered new exit (range 7) 6841 | -1/Access | Entered Command 6880 | -1/Command | Identified Transdimensional Reconstructor 6880 | -1/Command | Failed to warp due to unstable space 6886 | -1/Command | Disengaged cave seal 6886 | -1/Command | Welcomed Warlord to Command 6891 | -1/Command | Disengaged cave seal 6891 | -1/Command | Found Gamma Bomb Array 6989 | -1/Command | Spotted M Guard 6989 | -1/Command | Spotted M Guard 6989 | -1/Command | Spotted Combat Programmer 6989 | -1/Command | Spotted Combat Programmer 7020 | -1/Command | Combat Programmer assimilated allied 6E-VEB(s) 7029 | -1/Command | Combat Programmer assimilated allied DI-S9X(s) 7088 | -1/Command | Destroyed M Guard 7089 | -1/Command | Destroyed M Guard 7089 | -1/Command | All MAIN.C guards destroyed 7118 | -1/Command | Lost 21 allies 7128 | -1/Command | Met MAIN.C 7128 | -1/Command | 0b10 Conduit disabled 7145 | -1/Command | Destroyed MAIN.C Shell 7147 | -1/Command | MAIN.C activated Command garrisons 7170 | -1/Command | Warlord commented on Warlord statues 7174 | -1/Command | P-80 Master assimilated allied 1A-HHK(g) 7175 | -1/Command | P-80 Master assimilated allied 6X-CD0(g) 7198 | -1/Command | Warlord destroyed during the assault 7205 | -1/Command | Destroyed MAIN.C 7208 | -1/Command | Discovered new exit (range 67) 7208 | -1/Command | Discovered new exit (range 69) 7208 | -1/Command | Extracted map data and part IDs from MAIN.C's data core 7229 | -1/Command | Lost 5 allies 7233 | *** | Establishing 0b11! Last Messages --------------- 07208_ Acquired 136 matter. 07208_ Slug penetrates H-88 Terminator. 07208_ Slug penetrates Wall. 07208_ EXIT=FOUND 07208_ Acquired data core, extracted map data and part IDs. 07208_ S-43 Plague destroyed. 07209_ Slug penetrates Wall. 07209_ Slug penetrates H-88 Terminator. 07209_ Acquired Cld. Impulse Thruster. 07209_ Vortex Lance destroyed. 07209_ Impulse Thruster Array destroyed. 07210_ P-80 Master resets P-80 Master, system corruption cleaned. 07210_ Slug penetrates H-88 Terminator. 07210_ P-80 Master hacks X-87 Electro, assimilated. 07211_ Acquired Xenon Bombardment Thruster. 07211_ S-43 Plague destroyed. 07212_ Slug penetrates Door. 07214_ Dropped Actuator Array. 07219_ System corrupted: Matter fused (-6). 07221_ Acquired 26 matter. Map ----- +----------------------------------------------------+ | #????????# # #??# #????????#?#"" | | #????????# # #??# #????????#?#"" | | "" #?######?# ##############??#+######???#?# " | | "" ### ### # ############ #???#?# " | | R + "" T" ## #???#?# " | | "" ] ### T" "" ## #???#?#"""" | | "" #?# ##### ## #???#?#"" | | ####+######## ######## ## #???#?# | | # = ## #?????## ## #???#?# | | ###### ## #?????# ##+########### | | ###### ## #?????# T" | | + ## #?????# "" | | ###### ## #?????# | | ?????############# #?????# ############## " | | ######## # #????####+###########??#?# " | | # # #????# #??#?# | | # # ###### #??#?##### | | + + # #??#?????? | | # # # #??####### | | # # ### "!!! * #????????? | | # # #?# #!!! #????????? | | # #^^#?# #!! #????????? | | ###########^^#?# ################????????? | | #?????????# #?# ###?????????????????????? | | #?????????# #?# #?????????????????????? | | #?????????# #?# @ #?????????????????????? | | #?????????# #?# #?????????????????????? | | * ##????????# #?######?????????????????????? | | #????????# #????????????????????????????? | | ##????????# #????????????????????????????? | | #######???# #????????????????????????????? | | ######/##! ##### #????????????????????????????? | | ???# #????????????????????????????? | | ???# #????????????????????????????? | | ???# ### #####/#####?????????????????????????? | | ???# ######### #?????????????????????????? | | ???# + # #?????????????????????????? | | ???# # # "" ]#?????????????????????????? | | ???# # + "" #?????????????????????????? | | ???# # # T" #?????????????????????????? | | ???# # # "" #?????????????????????????? | | ???# # # "" #?????????????????????????? | | ???# # + #?????????????????????????? | | ???# # ! # #?????????????????????????? | | ???# # ##########?????????????????????????? | | ???# # !| #??????????????????????????????????? | | ???# # !| #??????????????????????????????????? | | ???# # *| #??????????????????????????????????? | | ???# #########??????????????????????????????????? | | ####+#####???????????????????????????????????????? | +----------------------------------------------------+ Best States ------------- Heat Dissipation 116 Energy Generation 55 Energy Capacity 700 Matter Stores 300 Matter Capacity 300 Sight Range 23 Terrain Scan Density 10 ECM Strength 1 Jamming Range 16 Additional Mass Support 9 Armor Coverage 750 Resistance: KI 25 Resistance: TH 10 Melee Speed Boost 30 Evasion (%) 81 Targeting Accuracy 12 Melee Accuracy 12 Target Analysis 6 Core Analysis 12 Offensive Hacking 38 Defensive Hacking 12 Authchip Count 1 Item Schematics ----------------- Cld. VTOL Module | -8/Materials | Scanalyzed Field Propulsion Drive | -6/Factory | Hacked Nanoactuators | -4/Factory | Hacked Assault Drone Bay | -4/Zhirov | Free Exp. Optical Array | -4/Zhirov | Free Imp. Arc Thrower | -4/Zhirov | Free Exp. Heat Sink | -4/Zhirov | Free Robot Schematics ------------------ None Fabricated ------------ Cld. VTOL Module | x1 | -4/Factory Nanoactuators | x2 | -4/Factory Field Propulsion Drive | x2 | -3/Research | Authchip Repaired ---------- Cld. VTOL Module | 99% | -7/Factory | Broken Hyp. Coil Gun | 34% | -4/Factory Studied --------- Mic. Nuclear Core | -7/Factory | Hacked Mic. Antimatter Reactor | -4/Factory | Hacked Lrn. Missile Launcher | -3/Research | Hacked Q-thruster | -2/Research | Hacked Alien Tech Used ----------------- Integrated Reactor Transdimensional Reconstructor Achievements -------------- Doshington I Have Friends Everywhere Showdown Watch This! Welcome To The Revolution Challenges ------------ None Game ------ Seed UtilityPotentialProjector Manual? 0 Play Time 04:49:02 Cumulative 654.4 hours Start 2026.05.06 @ 14:26:25 End 2026.06.18 @ 15:06:24 Sessions 19 Manual Loads 0 Difficulty Rogue Special Mode None Game No. 363 Rogue 338 Adventurer 7 Explorer 18 Win Type 1 Total 61 Types 39/2/9/2/2/1/1/3/0/2 Lore% 95 Gallery% 87 Achievement% 72 Wizard Run 0 Options --------- Layout 0 ASCII 0 Keyboard 0 Movement Numpad Keybinds 0 Fullscreen 1 Font 18/SmallcapsGlow Map View 76x50 Zoom Use 0% Tactical HUD 1 Map Filters NONE Filters NONE Steam 1 RUN: a4fc5f82-201a-4a5e-ba82-07a41c4b8ef5